fUSD/lending_fUSD_20260214
["ID","MTS","AMOUNT","RATE_DAILY","PERIOD"]
[405372083,1771093942089,-500.0,0.00040273,9]
[405372084,1771093942101,-500.0,0.00040273,9]
[405372085,1771093942112,-500.0,0.00040273,9]
[405372086,1771093942123,-500.0,0.00040273,9]
[405372087,1771093942134,-500.0,0.00040273,9]
[405372088,1771093942144,-512.2,0.00040273,9]
[405372089,1771093942155,-500.0,0.00040273,9]
[405372090,1771093942167,-500.0,0.00040273,9]
[405372091,1771093942179,-500.0,0.00040273,9]
[405372092,1771093942189,-500.0,0.00040273,9]
[405372093,1771093942199,-3417.97,0.00040273,9]
[405372094,1771093942212,-489.39082991,0.00040273,9]
[405372095,1771093942224,-562.68881688,0.00040273,9]
[405372096,1771093942235,-500.0,0.00040273,9]
[405372097,1771093942246,-500.0,0.00040273,9]
[405372098,1771093942257,-550.24449372,0.00040273,9]
[405372099,1771093942268,-500.0,0.00040273,9]
[405372100,1771093942278,-500.0,0.00040273,9]
[405372101,1771093942288,-5149.98,0.00040273,9]
[405372102,1771093942298,-500.0,0.00040273,9]
[405372103,1771093942308,-500.0,0.00040273,9]
[405372104,1771093942318,-3403.19,0.00040273,9]
[405372105,1771093942329,-500.0,0.00040273,9]
[405372106,1771093942338,-500.0,0.00040273,9]
[405372107,1771093942349,-500.0,0.00040273,9]
[405372108,1771093942359,-538.62,0.00040273,9]
[405372109,1771093942369,-500.0,0.00040273,9]
[405372110,1771093942381,-500.0,0.00040273,9]
[405372111,1771093942391,-500.0,0.00040273,9]
[405372112,1771093942403,-500.0,0.00040273,9]
[405372113,1771093942415,-556.88,0.00040273,9]
[405372114,1771093942425,-5585.82,0.00040273,9]
[405372115,1771093942437,-561.54,0.00040273,9]
[405372116,1771093942447,-1233.52,0.00040273,9]
[405372117,1771093942458,-500.0,0.00040273,9]
[405372118,1771093942468,-597.16214946,0.00040273,9]
[405372119,1771093942477,-500.0,0.00040273,9]
[405372120,1771093942488,-540.9,0.00040273,2]
[405372121,1771093942498,-711.16,0.00040273,9]
[405372122,1771093942508,-500.0,0.00040273,9]
[405372123,1771093942519,-500.0,0.00040273,9]
[405372124,1771093942711,-524.45,0.00040273,9]
[405372125,1771093942738,-500.0,0.00040273,9]
[405372126,1771093942747,-885.44,0.00040273,9]
[405372127,1771093942757,-549.02570026,0.00040273,9]
[405372128,1771093942768,-500.0,0.00040273,9]
[405372129,1771093942777,-500.0,0.00040273,9]
[405372130,1771093942787,-2840.08,0.00040273,9]
[405372131,1771093942797,-500.0,0.00040273,9]
[405372132,1771093942807,-500.0,0.00040273,9]
[405372133,1771093942816,-500.0,0.00040273,9]
[405372134,1771093942827,-500.06,0.00040273,9]
[405372135,1771093942837,-500.0,0.00040273,9]
[405372136,1771093942846,-500.0,0.00040273,9]
[405372137,1771093942856,-500.0,0.00040273,9]
[405372138,1771093942866,-500.0,0.00040273,9]
[405372139,1771093942876,-188.5845163,0.00040273,9]
[405372140,1771093942884,-500.0,0.00040273,9]
[405372141,1771093942893,-3032.83,0.00040273,9]
[405372142,1771093942903,-500.0,0.00040273,9]
[405372143,1771093942914,-3433.22,0.00040273,9]
[405372144,1771093942924,-500.0,0.00040273,9]
[405372145,1771093942934,-500.0,0.00040273,9]
[405372146,1771093942944,-500.0,0.00040273,9]
[405372147,1771093942954,-555.44609228,0.00040273,9]
[405372148,1771093942964,-500.0,0.00040273,9]
[405372149,1771093942974,-500.0,0.00040273,9]
[405372150,1771093942983,-631.89,0.00040273,9]
[405372151,1771093942993,-500.0,0.00040273,9]
[405372152,1771093943002,-500.0,0.00040273,9]
[405372153,1771093943013,-500.0,0.00040273,9]
[405372154,1771093943025,-500.0,0.00040273,9]
[405372155,1771093943035,-546.43149426,0.00040273,9]
[405372156,1771093943046,-500.0,0.00040273,9]
[405372157,1771093943056,-500.0,0.00040273,9]
[405372158,1771093943066,-500.0,0.00040273,9]
[405372159,1771093943076,-500.0,0.00040273,9]
[405372160,1771093943087,-500.0,0.00040273,9]
[405372161,1771093943096,-500.0,0.00040273,9]
[405372162,1771093943106,-3775.51,0.00040273,9]
[405372163,1771093943116,-500.0,0.00040273,9]
[405372164,1771093943126,-500.0,0.00040273,9]
[405372165,1771093943136,-500.0,0.00040273,9]
[405372166,1771093943147,-217.07293327,0.00040273,9]
[405372167,1771093943157,-500.0,0.00040273,9]
[405372168,1771093943167,-500.0,0.00040273,9]
[405372169,1771093943177,-1984.08,0.00040273,9]
[405372170,1771093943187,-500.0,0.00040273,9]
[405372171,1771093943197,-500.0,0.00040273,9]
[405372172,1771093943207,-500.0,0.00040273,9]
[405372173,1771093943217,-500.0,0.00040273,9]
[405372174,1771093943227,-500.0,0.00040273,9]
[405372175,1771093943237,-3890.45,0.00040273,9]
[405372176,1771093943247,-525.44791274,0.00040273,9]
[405372177,1771093943258,-500.0,0.00040273,9]
[405372178,1771093943268,-500.0,0.00040273,9]
[405372179,1771093943278,-500.0,0.00040273,9]
[405372180,1771093943289,-4088.99,0.00040273,9]
[405372181,1771093943300,-500.0,0.00040273,9]
[405372182,1771093943311,-500.0,0.00040273,9]
[405372183,1771093943321,-500.0,0.00040273,9]
[405372184,1771093943332,-500.0,0.00040273,9]
[405372185,1771093943353,-500.0,0.00040273,9]
[405372186,1771093943363,-500.0,0.00040273,9]
[405372187,1771093943373,-870.9,0.00040273,9]
[405372188,1771093943382,-500.0,0.00040273,2]
[405372189,1771093943393,-500.0,0.00040273,9]
[405372190,1771093943403,-618.6382947,0.00040273,9]
[405372191,1771093943416,-710.66,0.00040273,9]
[405372192,1771093943425,-500.0,0.00040273,9]
[405372193,1771093943434,-500.0,0.00040273,9]
[405372194,1771093943444,-500.0,0.00040273,9]
[405372195,1771093943454,-548.28542716,0.00040273,9]
[405372196,1771093943464,-500.0,0.00040273,9]
[405372197,1771093943473,-3872.17,0.00040273,9]
[405372198,1771093943483,-500.0,0.00040273,9]
[405372199,1771093943493,-500.0,0.00040273,9]
[405372200,1771093943502,-500.0,0.00040273,9]
[405372201,1771093943511,-500.0,0.00040273,9]
[405372202,1771093943521,-593.55073179,0.00040273,9]
[405372203,1771093943530,-194.40789801,0.00040273,9]
[405372204,1771093943539,-500.0,0.00040273,9]
[405372205,1771093943549,-577.68,0.00040273,9]
[405372206,1771093943560,-500.0,0.00040273,9]
[405372207,1771093943569,-500.0,0.00040273,9]
[405372208,1771093943579,-471.00375954,0.00040273,9]
[405372209,1771093943589,-500.0,0.00040273,9]
[405372210,1771093943598,-500.0,0.00040273,9]
[405372211,1771093943607,-500.0,0.00040273,9]
[405372212,1771093943616,-500.0,0.00040273,9]
[405372213,1771093943626,-500.0,0.00040273,9]
[405372214,1771093943636,-500.0,0.00040273,9]
[405372215,1771093943646,-5100.22,0.00040273,9]
[405372216,1771093943656,-458.40228813,0.00040273,9]
[405372217,1771093943666,-500.0,0.00040273,9]
[405372218,1771093943676,-10810.91,0.00040273,9]
[405372219,1771093943686,-4011.27,0.00040273,9]
[405372220,1771093943695,-4569.78,0.00040273,9]
[405372221,1771093943706,-500.0,0.00040273,9]
[405372222,1771093943716,-3982.43,0.00040273,9]
[405372223,1771093943725,-500.0,0.00040273,9]
[405372224,1771093943735,-500.0,0.00040273,9]
[405372225,1771093943745,-945.81,0.00040273,9]
[405372226,1771093943755,-300.0,0.00040273,2]
[405372227,1771093943765,-5326.62,0.00040273,9]
[405372228,1771093943776,-1374.78,0.00040273,9]
[405372229,1771093943786,-4059.63,0.00040273,9]
[405372230,1771093943795,-500.0,0.00040273,9]
[405372231,1771093943805,-3578.35,0.00040273,9]
[405372232,1771093943814,-500.0,0.00040273,9]
[405372233,1771093943824,-5981.56,0.00040273,9]
[405372234,1771093943834,-500.0,0.00040273,9]
[405372235,1771093943844,-500.0,0.00040273,9]
[405372236,1771093943854,-544.34659831,0.00040273,9]
[405372237,1771093943864,-394.94047832,0.00040273,9]
[405372238,1771093943874,-500.0,0.00040273,9]
[405372239,1771093943883,-5562.93,0.00040273,9]
[405372240,1771093943893,-3804.91,0.00040273,9]
[405372241,1771093943903,-500.0,0.00040273,9]
[405372242,1771093943912,-500.0,0.00040273,9]
[405372243,1771093943922,-3292.7,0.00040273,9]
[405372244,1771093943932,-10011.46,0.00040273,9]
[405372245,1771093943942,-500.0,0.00040273,9]
[405372246,1771093943952,-500.0,0.00040273,9]
[405372247,1771093943962,-500.0,0.00040273,9]
[405372248,1771093943971,-260.22682835,0.00040273,9]
[405372249,1771093943981,-150.0,0.00040273,9]
[405372250,1771093943991,-5698.9,0.00040273,9]
[405372251,1771093944001,-618.1,0.00040273,9]
[405372252,1771093944010,-500.0,0.00040273,9]
[405372253,1771093944021,-500.0,0.00040273,9]
[405372254,1771093944031,-500.0,0.00040273,9]
[405372255,1771093944042,-226.2545931,0.00040273,9]
[405372256,1771093944051,-500.0,0.00040273,9]
[405372257,1771093944060,-500.0,0.00040273,9]
[405372258,1771093944070,-500.0,0.00040273,9]
[405372259,1771093944079,-500.0,0.00040273,9]
[405372260,1771093944089,-3635.6,0.00040273,9]
[405372261,1771093944098,-4860.79,0.00040273,9]
[405372262,1771093944108,-585.84,0.00040273,9]
[405372263,1771093944118,-646.40049254,0.00040273,9]
[405372264,1771093944128,-500.0,0.00040273,9]
[405372265,1771093944141,-5822.07,0.00040273,9]
[405372266,1771093944151,-500.0,0.00040273,9]
[405372267,1771093944160,-500.0,0.00040273,9]
[405372268,1771093944169,-8145.86,0.00040273,9]
[405372269,1771093944179,-3702.56,0.00040273,9]
[405372270,1771093944189,-636.85305855,0.00040273,9]
[405372271,1771093944199,-1020.67,0.00040273,9]
[405372272,1771093944209,-422.34874259,0.00040273,9]
[405372273,1771093944218,-500.0,0.00040273,9]
[405372274,1771093944227,-500.0,0.00040273,9]
[405372275,1771093944236,-2809.91,0.00040273,15]
[405372276,1771093944245,-579.77,0.00040273,9]
[405372277,1771093944255,-500.0,0.00040273,9]
[405372278,1771093944265,-500.0,0.00040273,9]
[405372279,1771093944274,-692.65,0.00040273,9]
[405372280,1771093944284,-835.77,0.00040273,9]
[405372281,1771093944294,-500.0,0.00040273,9]
[405372282,1771093944303,-500.0,0.00040273,9]
[405372283,1771093944312,-500.0,0.00040273,9]
[405372284,1771093944321,-500.0,0.00040273,9]
[405372285,1771093944330,-500.0,0.00040273,9]
[405372286,1771093944340,-4321.01,0.00040273,9]
[405372287,1771093944349,-511.61738328,0.00040273,9]
[405372288,1771093944359,-500.0,0.00040273,9]
[405372289,1771093944368,-500.0,0.00040273,9]
[405372290,1771093944379,-500.0,0.00040273,9]
[405372291,1771093944392,-5541.84,0.00040273,9]
[405372292,1771093944402,-11996.33,0.00040273,9]
[405372293,1771093944413,-500.0,0.00040273,9]
[405372294,1771093944423,-500.0,0.00040273,9]
[405372295,1771093944434,-4068.1,0.00040273,9]
[405372296,1771093944455,-500.0,0.00040273,9]
[405372297,1771093944470,-500.0,0.00040273,9]
[405372298,1771093944480,-3498.65,0.00040273,9]
[405372299,1771093944490,-500.0,0.00040273,9]
[405372300,1771093944500,-511.89073195,0.00040273,9]
[405372301,1771093944509,-500.0,0.00040273,9]
[405372302,1771093944519,-4772.89,0.00040273,9]
[405372303,1771093944528,-3599.74,0.00040273,9]
[405372304,1771093944538,-3590.36,0.00040273,9]
[405372305,1771093944553,-500.0,0.00040273,9]
[405372306,1771093944563,-500.0,0.00040273,9]
[405372307,1771093944573,-500.0,0.00040273,9]
[405372308,1771093944582,-555.53,0.00040273,9]
[405372309,1771093944592,-500.0,0.00040273,9]
[405372310,1771093944601,-500.0,0.00040273,9]
[405372311,1771093944611,-500.0,0.00040273,9]
[405372312,1771093944620,-500.0,0.00040273,9]
[405372313,1771093944630,-573.46235251,0.00040273,9]
[405372314,1771093944639,-602.84,0.00040273,9]
[405372315,1771093944650,-3986.91,0.00040273,9]
[405372316,1771093944669,-4500.2,0.00040273,9]
[405372317,1771093944689,-500.0,0.00040273,9]
[405372318,1771093944698,-500.0,0.00040273,9]
[405372319,1771093944708,-500.0,0.00040273,9]
[405372320,1771093944717,-500.0,0.00040273,9]
[405372321,1771093944727,-500.0,0.00040273,9]
[405372322,1771093944736,-463.9643664,0.00040273,9]
[405372323,1771093944746,-500.0,0.00040273,9]
[405372324,1771093944755,-500.0,0.00040273,9]
[405372325,1771093944765,-500.0,0.00040273,9]
[405372326,1771093944775,-17167.11,0.00040273,15]
[405372327,1771093944785,-500.0,0.00040273,9]
[405372328,1771093944794,-500.0,0.00040273,9]
[405372329,1771093944804,-500.0,0.00040273,9]
[405372330,1771093944813,-500.0,0.00040273,9]
[405372331,1771093944822,-500.0,0.00040273,9]
[405372332,1771093944832,-500.0,0.00040273,9]
[405372333,1771093944841,-6987.05,0.00040273,9]
[405372334,1771093944851,-500.0,0.00040273,9]
[405372335,1771093944860,-792.61,0.00040273,9]
[405372336,1771093944870,-500.0,0.00040273,9]
[405372337,1771093944879,-3809.76,0.00040273,9]
[405372338,1771093944889,-500.0,0.00040273,9]
[405372339,1771093944899,-500.0,0.00040273,9]
[405372340,1771093944909,-1872.91,0.00040273,9]
[405372341,1771093944919,-500.0,0.00040273,9]
[405372342,1771093944928,-500.0,0.00040273,9]
[405372343,1771093944937,-418.19718894,0.00040273,9]
[405372344,1771093944947,-751.97,0.00040273,9]
[405372345,1771093944960,-4301.09,0.00040273,9]
[405372346,1771093944970,-500.0,0.00040273,9]
[405372347,1771093944979,-500.0,0.00040273,9]
[405372348,1771093944989,-261.58946267,0.00040273,9]
[405372349,1771093944998,-500.0,0.00040273,9]
[405372350,1771093945008,-500.0,0.00040273,9]
[405372351,1771093945018,-500.0,0.00040273,9]
[405372352,1771093945028,-500.0,0.00040273,9]
[405372353,1771093945038,-247.96080962,0.00040273,9]
[405372354,1771093945047,-226.71324632,0.00040273,9]
[405372355,1771093945057,-500.0,0.00040273,9]
[405372356,1771093945066,-497.87259964,0.00040273,9]
[405372357,1771093945078,-500.0,0.00040273,9]
[405372358,1771093945087,-49453.89,0.00040273,9]
[405372359,1771093945096,-500.0,0.00040273,9]
[405372360,1771093945105,-514.79,0.00040273,9]
[405372361,1771093945114,-500.0,0.00040273,9]
[405372362,1771093945124,-500.0,0.00040273,9]
[405372363,1771093945295,-522.72,0.00040273,9]
[405372364,1771093945306,-500.0,0.00040273,9]
[405372365,1771093945315,-500.0,0.00040273,9]
[405372366,1771093945325,-3592.54,0.00040273,9]
[405372367,1771093945334,-500.0,0.00040273,9]
[405372368,1771093945343,-500.0,0.00040273,9]
[405372369,1771093945352,-6816.69,0.00040273,9]
[405372370,1771093945362,-6877.26,0.00040273,9]
[405372371,1771093945371,-513.32995837,0.00040273,9]
[405372372,1771093945381,-500.0,0.00040273,9]
[405372373,1771093945391,-500.0,0.00040273,9]
[405372374,1771093945400,-3548.79,0.00040273,9]
[405372375,1771093945410,-582.65782457,0.00040273,9]
[405372376,1771093945422,-201.02437646,0.00040273,9]
[405372377,1771093945432,-643.83,0.00040273,9]
[405372378,1771093945443,-5429.53,0.00040273,9]
[405372379,1771093945455,-500.0,0.00040273,9]
[405372380,1771093945465,-500.0,0.00040273,9]
[405372381,1771093945474,-500.0,0.00040273,9]
[405372382,1771093945483,-500.0,0.00040273,9]
[405372383,1771093945498,-546.86519055,0.00040273,9]
[405372384,1771093945507,-500.0,0.00040273,9]
[405372385,1771093945517,-4648.43,0.00040273,9]
[405372386,1771093945527,-500.0,0.00040273,9]
[405372387,1771093945536,-500.0,0.00040273,9]
[405372388,1771093945545,-226.10515852,0.00040273,9]
[405372389,1771093945555,-685.71,0.00040273,9]
[405372390,1771093945564,-500.0,0.00040273,9]
[405372391,1771093945573,-500.0,0.00040273,9]
[405372392,1771093945583,-500.0,0.00040273,9]
[405372393,1771093945592,-1668.59,0.00040273,9]
[405372394,1771093945601,-500.0,0.00040273,9]
[405372395,1771093945611,-222.79831,0.00040273,9]
[405372396,1771093945620,-622.0,0.00040273,9]
[405372397,1771093945629,-4113.81,0.00040273,9]
[405372398,1771093945639,-500.0,0.00040273,9]
[405372399,1771093945648,-500.0,0.00040273,120]
[405372400,1771093945658,-735.58,0.00040273,9]
[405372401,1771093945667,-500.0,0.00040273,9]
[405372402,1771093945676,-1564.16,0.00040273,9]
[405372403,1771093945685,-500.0,0.00040273,9]
[405372404,1771093945699,-500.0,0.00040273,9]
[405372405,1771093945708,-678.21,0.00040273,9]
[405372406,1771093945718,-2515.75,0.00040273,9]
[405372407,1771093945729,-500.0,0.00040273,9]
[405372408,1771093945740,-4400.86,0.00040273,9]
[405372409,1771093945750,-175.35,0.00040273,9]
[405372410,1771093945760,-500.0,0.00040273,9]
[405372411,1771093945771,-579.75,0.00040273,9]
[405372412,1771093945780,-798.86,0.00040273,9]
[405372413,1771093945790,-500.0,0.00040273,9]
[405372414,1771093945798,-1141.19,0.00040273,9]
[405372415,1771093945807,-995.04,0.00040273,9]
[405372416,1771093945817,-9716.73,0.00040273,9]
[405372417,1771093945827,-500.0,0.00040273,9]
[405372418,1771093945836,-500.0,0.00040273,9]
[405372419,1771093945845,-500.0,0.00040273,9]
[405372420,1771093945854,-500.0,0.00040273,9]
[405372421,1771093945864,-500.0,0.00040273,9]
[405372422,1771093945873,-500.0,0.00040273,9]
[405372423,1771093945883,-4640.07,0.00040273,9]
[405372424,1771093945893,-1058.89,0.00040273,9]
[405372425,1771093945902,-4083.12,0.00040273,9]
[405372426,1771093945911,-500.0,0.00040273,9]
[405372427,1771093945920,-224.25634277,0.00040273,9]
[405372428,1771093945930,-150.0,0.00040296,7]
[405372429,1771093945941,-150.0,0.00040296,7]
[405372430,1771093945951,-150.0,0.00040296,7]
[405372431,1771093945962,-150.0,0.00040296,7]
[405372432,1771093945972,-150.0,0.00040296,7]
[405372433,1771093945981,-253.01,0.00040375,120]
[405372434,1771093945991,-12499.99,0.00040375,120]
[405372435,1771093946000,-1999.0,0.0004041,120]
[405372436,1771093946010,-150.0,0.00040466,7]
[405372437,1771093946020,-2500.0,0.000405,120]
[405372438,1771093946029,-151.082823,0.00040547,9]
[405372439,1771093946039,-500.0,0.00040547,2]
[405372440,1771093946048,-500.0,0.00040547,9]
[405372441,1771093946058,-500.0,0.00040547,9]
[405372442,1771093946068,-198.05229807,0.00040547,9]
[405372443,1771093946080,-500.0,0.00040547,9]
[405372444,1771093946089,-500.0,0.00040547,9]
[405372445,1771093946099,-500.0,0.00040547,9]
[405372446,1771093946108,-500.0,0.00040547,9]
[405372447,1771093946118,-500.0,0.00040547,9]
[405372448,1771093946127,-500.0,0.00040547,9]
[405372449,1771093946137,-500.0,0.00040547,9]
[405372450,1771093946147,-500.0,0.00040547,9]
[405372451,1771093946158,-500.0,0.00040547,9]
[405372452,1771093946168,-500.0,0.00040547,9]
[405372453,1771093946178,-500.0,0.00040547,9]
[405372454,1771093946188,-500.0,0.00040547,9]
[405372455,1771093946199,-500.0,0.00040547,9]
[405372456,1771093946208,-447.26889636,0.00040547,9]
[405372457,1771093946218,-500.0,0.00040547,9]
[405372458,1771093946228,-2236.17,0.00040547,9]
[405372459,1771093946238,-500.0,0.00040547,9]
[405372460,1771093946247,-500.0,0.00040547,9]
[405372461,1771093946257,-462.93783578,0.00040547,9]
[405372462,1771093946267,-500.0,0.00040547,9]
[405372463,1771093946277,-500.0,0.00040547,9]
[405372464,1771093946287,-500.0,0.00040547,9]
[405372465,1771093946296,-317.98125459,0.00040547,9]
[405372466,1771093946306,-500.0,0.00040547,9]
[405372467,1771093946315,-500.0,0.00040547,9]
[405372468,1771093946325,-1499.27,0.00040547,9]
[405372469,1771093946335,-500.0,0.00040547,9]
[405372470,1771093946346,-500.0,0.00040547,9]
[405372471,1771093946355,-500.0,0.00040547,9]
[405372472,1771093946365,-500.0,0.00040547,9]
[405372473,1771093946376,-500.0,0.00040547,9]
[405372474,1771093946385,-530.55,0.00040547,9]
[405372475,1771093946395,-679.39,0.00040547,9]
[405372476,1771093946407,-500.0,0.00040547,9]
[405372477,1771093946418,-500.0,0.00040547,9]
[405372478,1771093946428,-500.0,0.00040547,9]
[405372479,1771093946438,-263.80924581,0.00040547,9]
[405372480,1771093946448,-425.12,0.00040547,2]
[405372481,1771093946468,-500.0,0.00040547,9]
[405372482,1771093946480,-500.0,0.00040547,9]
[405372483,1771093946491,-500.0,0.00040547,9]
[405372484,1771093946501,-500.0,0.00040547,9]
[405372485,1771093946511,-500.0,0.00040547,9]
[405372486,1771093946522,-500.0,0.00040547,9]
[405372487,1771093946532,-500.0,0.00040547,9]
[405372488,1771093946542,-500.0,0.00040547,9]
[405372489,1771093946553,-500.0,0.00040547,9]
[405372490,1771093946564,-3818.35,0.00040547,9]
[405372491,1771093946575,-500.0,0.00040547,9]
[405372492,1771093946585,-500.0,0.00040547,9]
[405372493,1771093946596,-500.0,0.00040547,9]
[405372494,1771093946607,-500.0,0.00040547,9]
[405372495,1771093946618,-500.0,0.00040547,9]
[405372496,1771093946628,-500.0,0.00040547,9]
[405372497,1771093946640,-500.0,0.00040547,9]
[405372498,1771093946652,-500.0,0.00040547,9]
[405372499,1771093946665,-500.0,0.00040547,9]
[405372500,1771093946677,-500.0,0.00040547,9]
[405372501,1771093946689,-500.0,0.00040547,9]
[405372502,1771093946701,-500.0,0.00040547,9]
[405372503,1771093946712,-500.0,0.00040547,9]
[405372504,1771093946722,-500.0,0.00040547,9]
[405372505,1771093946733,-1478.52,0.00040547,9]
[405372506,1771093946743,-500.0,0.00040547,9]
[405372507,1771093946754,-500.0,0.00040547,9]
[405372508,1771093946766,-500.0,0.00040547,9]
[405372509,1771093946777,-500.0,0.00040547,9]
[405372510,1771093946788,-500.0,0.00040547,9]
[405372511,1771093946799,-596.01001565,0.00040547,9]
[405372512,1771093946810,-500.0,0.00040547,9]
[405372513,1771093946821,-325.05358038,0.00040547,9]
[405372514,1771093946832,-595.24146553,0.00040547,9]
[405372515,1771093946843,-500.0,0.00040547,9]
[405372516,1771093946855,-500.0,0.00040547,9]
[405372517,1771093946866,-500.0,0.00040547,9]
[405372518,1771093946877,-500.0,0.00040547,9]
[405372519,1771093946888,-538.39637093,0.00040547,9]
[405372520,1771093946899,-3459.63,0.00040547,9]
[405372521,1771093946911,-1007.77,0.00040547,9]
[405372522,1771093946922,-1366.15,0.00040547,2]
[405372523,1771093946933,-500.0,0.00040547,9]
[405372524,1771093946943,-500.0,0.00040547,9]
[405372525,1771093946955,-500.0,0.00040547,9]
[405372526,1771093946965,-1397.34,0.00040547,9]
[405372527,1771093946976,-500.0,0.00040547,9]
[405372528,1771093946988,-500.0,0.00040547,9]
[405372529,1771093947003,-500.0,0.00040547,9]
[405372530,1771093947016,-581.99,0.00040547,9]
[405372531,1771093947027,-188.96626081,0.00040547,9]
[405372532,1771093947039,-500.0,0.00040547,9]
[405372533,1771093947051,-175.18775965,0.00040547,9]
[405372534,1771093947066,-500.0,0.00040547,9]
[405372535,1771093947082,-500.0,0.00040547,9]
[405372536,1771093947093,-500.0,0.00040547,9]
[405372537,1771093947106,-500.0,0.00040547,9]
[405372538,1771093947117,-500.0,0.00040547,9]
[405372539,1771093947128,-3781.3,0.00040547,9]
[405372540,1771093947140,-500.0,0.00040547,9]
[405372541,1771093947151,-500.0,0.00040547,9]
[405372542,1771093947163,-500.0,0.00040547,9]
[405372543,1771093947175,-500.0,0.00040547,9]
[405372544,1771093947188,-500.0,0.00040547,9]
[405372545,1771093947202,-500.0,0.00040547,9]
[405372546,1771093947215,-500.0,0.00040547,9]
[405372547,1771093947229,-500.0,0.00040547,9]
[405372548,1771093947241,-500.0,0.00040547,9]
[405372549,1771093947254,-500.0,0.00040547,9]
[405372550,1771093947267,-500.0,0.00040547,9]
[405372551,1771093947280,-500.0,0.00040547,9]
[405372552,1771093947293,-500.0,0.00040547,9]
[405372553,1771093947307,-500.0,0.00040547,9]
[405372554,1771093947321,-500.0,0.00040547,9]
[405372555,1771093947345,-500.0,0.00040547,9]
[405372556,1771093947370,-665.99,0.00040547,9]
[405372557,1771093947386,-500.0,0.00040547,9]
[405372558,1771093947404,-500.0,0.00040547,9]
[405372559,1771093947427,-500.0,0.00040547,9]
[405372560,1771093947444,-500.0,0.00040547,9]
[405372561,1771093947462,-460.38910127,0.00040547,9]
[405372562,1771093947479,-500.0,0.00040547,9]
[405372563,1771093947497,-512.2,0.00040547,9]
[405372564,1771093947518,-500.0,0.00040547,9]
[405372565,1771093947536,-500.0,0.00040547,9]
[405372566,1771093947553,-500.0,0.00040547,9]
[405372567,1771093947570,-500.0,0.00040547,9]
[405372568,1771093947588,-3417.97,0.00040547,9]
[405372569,1771093947610,-500.0,0.00040547,9]
[405372570,1771093947630,-500.0,0.00040547,9]
[405372571,1771093947648,-500.0,0.00040547,9]
[405372572,1771093947667,-500.0,0.00040547,9]
[405372573,1771093947683,-5149.98,0.00040547,9]
[405372574,1771093947701,-500.0,0.00040547,9]
[405372575,1771093947724,-500.0,0.00040547,9]
[405372576,1771093947742,-3403.19,0.00040547,9]
[405372577,1771093947761,-500.0,0.00040547,9]
[405372578,1771093947779,-500.0,0.00040547,9]
[405372579,1771093947796,-190.0644346,0.00040547,9]
[405372580,1771093947811,-538.62,0.00040547,9]
[405372581,1771093947830,-500.0,0.00040547,9]
[405372582,1771093947842,-500.0,0.00040547,9]